Cogmind - Beta 16 @@@ ROGUE MODE // 2025.11.08 @ 08:04:09 Player: Picayune Result: Destroyed by RL-QO5(x) with Makeshift Spear Performance ------------- Evolutions (0) 0 Regions Visited (3) 600 Robots Destroyed (14) 70 Value Destroyed (489) 489 Prototype IDs (9) 180 Alien Tech Used (0) 0 Bonus (800) 800 TOTAL SCORE: 2139 Bonus ------- Registered with UFD 300 Met Optimus in HQ 500 Cogmind --------- Core Integrity 0/250 Matter 95/300 Energy 218/250 System Corruption 3% Temperature Warm (157) Movement Treading (225) Ox1 Location -8/Scraptown Parts ------- > --- POWER (1) -------- Ion Engine > --- PROPULSION (2) --- Advanced Treads > --- UTILITY (2) ------ Improved Heat Sink Layered Medium Armor Plating > --- WEAPON (2) ------- Heavy Plasma Cannon > --- INVENTORY (5) ---- Scrap Suit Medium Storage Unit Makeshift Hacking Suite System Shield Peak State ------------ > --- POWER ------------ Ion Engine > --- PROPULSION ------- Advanced Treads > --- UTILITY ---------- Improved Heat Sink Layered Medium Armor Plating > --- WEAPON ----------- Heavy Plasma Cannon Enhanced Flamer > --- INVENTORY -------- Scrap Suit Medium Storage Unit Makeshift Hacking Suite System Shield [Rating: 21] Favorites ----------- Power Ion Engine Engine Ion Engine Propulsion Light Treads Treads Light Treads Wheel Compact Wheel Utility Medium Storage Unit Device Improved Heat Sink Storage Medium Storage Unit Processor Signal Interpreter Protection Layered Medium Armor Plating Weapon Light Assault Rifle Energy Cannon Heavy Plasma Cannon Ballistic Gun Light Assault Rifle Ballistic Cannon Light Cannon Launcher Grenade Launcher Special Weapon Enhanced Flamer Build | -11 -10 -10 -8 ------- Run | Yrd Mat Sub Scr Slots Evolved . | . . . . Power . | . . . . Propulsion . | . . . . Utility . | . . . . Weapon . | . . . . Parts Attached 25 | 6 8 . 11 Power 3 | 1 1 . 1 Engine 3 | 1 1 . 1 Core . | . . . . Reactor . | . . . . Propulsion 7 | 2 2 . 3 Treads 3 | 1 . . 2 Leg . | . . . . Wheel 4 | 1 2 . 1 Hover . | . . . . Flight . | . . . . Utility 7 | 1 3 . 3 Device 1 | . . . 1 Storage 3 | 1 2 . . Processor 2 | . 1 . 1 Hackware . | . . . . Protection 1 | . . . 1 Artifact . | . . . . Weapon 8 | 2 2 . 4 Energy Gun . | . . . . Energy Cannon 1 | . . . 1 Ballistic Gun 4 | 2 . . 2 Ballistic Cannon 1 | . 1 . . Launcher 1 | . 1 . . Special Weapon 1 | . . . 1 Impact Weapon . | . . . . Slashing Weapon . | . . . . Piercing Weapon . | . . . . Special Melee Weapon . | . . . . Unidentified Prototypes . | . . . . Parts Lost 10 | . 3 . 7 Power 1 | . . . 1 Propulsion 4 | . 1 . 3 Utility . | . . . . Weapon 5 | . 2 . 3 Highest Loss Streak 7 | . 2 . 7 To Critical Strikes . | . . . . Average Backups 9 | 3 8 10 9 Power . | . 1 1 . Propulsion 1 | 2 3 3 1 Utility 3 | . 2 3 3 Weapon 3 | . 1 3 4 Tool/Special . | . . . . Unused Backups 15 | . 2 . 13 Power . | . . . . Propulsion 2 | . 1 . 1 Utility 9 | . 1 . 8 Weapon 4 | . . . 4 Tool/Special . | . . . . Average Slot Usage (%) 78 | . 97 100 73 Engine 14 | . 14 14 14 Treads 13 | . 14 14 13 Wheel 13 | . 14 14 13 Storage 15 | . 22 14 13 Processor 11 | . 3 14 13 Ballistic Gun 6 | . 23 14 2 Peak Build Rating 21 | 6 8 8 21 Average Rating 7 | 5 7 8 7 On Entrance 5 | . 6 8 8 Avg Prop Armor Cover (%) 18 | 12 12 12 19 Naked Turns . | . . . . Heaviest Build 25 | 13 25 19 24 Greatest Support 22 | 10 16 16 22 Greatest Overweight (x) 5 | 1 2 1 5 Average Overweight (x) . | . 1 1 . Largest Inventory Capacity 10 | 8 10 10 10 Average Capacity 9 | 7 9 10 9 Most Carried 10 | 6 10 10 10 Average Carried 9 | 4 8 10 9 Final Capacity 10 | 8 10 10 5 Final Carried 10 | 6 10 10 5 Class Distribution -------------------- 100% | Mutant Dominant Class ---------------- Mutant | -10/Materials Mutant | -10/Subcaves Mutant | -8/Scraptown Resources | -11 -10 -10 -8 ----------- Run | Yrd Mat Sub Scr Matter Collected 623 | 215 272 . 136 Remotely . | . . . . Salvage Created 557 | . 272 . 285 Parts 26 | . 14 . 12 Haulers Intercepted . | . . . . Recyclers Shooed . | . . . . Parts Field Recycled . | . . . . Retrieved Matter . | . . . . Parts Self-Destructed . | . . . . Prevented . | . . . . Parts Restored . | . . . . Kills | -11 -10 -10 -8 ------- Run | Yrd Mat Sub Scr Combat Hostiles Destroyed 14 | . 8 . 6 Guns 12 | . 8 . 4 Cannons 2 | . . . 2 Classes Destroyed 6 | . 2 . 4 Swarmer 3 | . 3 . . Grunt 5 | . 5 . . Federalist 1 | . . . 1 Ranger 1 | . . . 1 Guru 1 | . . . 1 Scrapper 1 | . . . 1 Thug 2 | . . . 2 Best Kill Streak 4 | . 2 . 4 Combat Bots Only 4 | . 2 . 4 Max Kills in Single Turn 1 | . 1 . 1 Gunslinging . | . . . . Exploded . | . . . . Melee . | . . . . Uniques/NPCs Destroyed . | . . . . Combat | -11 -10 -10 -8 -------- Run | Yrd Mat Sub Scr Hostile Shots Fired 154 | . 62 . 92 Missed 31 | . 12 . 19 Hits 123 | . 50 . 73 Melee 3 | . . . 3 Projectile 120 | . 50 . 70 Critical Strikes 3 | . . . 3 Damage Taken 1471 | . 566 . 905 Core 260 | . 74 . 186 Absorbed by Shields . | . . . . Regen/Repaired (Parts) 13 | . . . 13 Core Remaining (%) 100 | 100 . . . Volleys Fired 73 | . 42 . 31 Largest 2 | . 2 . 2 Hottest 170 | . 40 . 170 Shots Fired 130 | . 69 . 61 Gun 118 | . 68 . 50 Cannon 3 | . . . 3 Launcher 1 | . 1 . . Special 8 | . . . 8 Kinetic 118 | . 68 . 50 Thermal 11 | . . . 11 Explosive 1 | . 1 . . Electromagnetic . | . . . . Robot Hit Streak 11 | . 7 . 11 Robot Miss Streak 3 | . 3 . 3 Penetration Max . | . . . . Secondary Targets 2 | . 1 . 1 Max Gunslinging Chain 1 | . 1 . 1 Shots Hit Robots 84 | . 41 . 43 Core Hits 30 | . 17 . 13 Critical Kills . | . . . . Critical Parts Destroyed 1 | . 1 . . Critical Strikes 1 | . 1 . . Destroy 1 | . 1 . . Melee Attacks . | . . . . Impact . | . . . . Slashing . | . . . . Piercing . | . . . . Sneak Attacks . | . . . . Combat Hostiles . | . . . . Follow-up Attacks . | . . . . Damage Inflicted 1151 | . 465 . 686 Guns 1025 | . 465 . 560 Cannons 64 | . . . 64 Explosions . | . . . . Melee . | . . . . Ramming . | . . . . Kinetic 1025 | . 465 . 560 Thermal 126 | . . . 126 Explosive . | . . . . Electromagnetic . | . . . . Impact . | . . . . Slashing . | . . . . Piercing . | . . . . Highest Corruption 3 | . 1 1 3 Average Corruption 1 | . 1 1 1 Corruption Purged . | . . . . Corruption Blocked . | . . . . Effects 12 | . . . 12 Message Errors 4 | . . . 4 Matter Fused 4 | . . . 4 Heat Flow Errors 1 | . . . 1 Energy Discharges 1 | . . . 1 Data Loss (minor) 1 | . . . 1 Data Loss (major) 1 | . . . 1 Overload Shots . | . . . . Overflow Damage 29 | . . . 29 Projectiles 29 | . . . 29 Explosions . | . . . . Melee . | . . . . Knockbacks . | . . . . Impact . | . . . . Kinetic . | . . . . Secondary . | . . . . Self-Inflicted Damage . | . . . . Shots . | . . . . Rammed . | . . . . Targets Rammed . | . . . . Kicked . | . . . . Crushed . | . . . . Highest Temperature 260 | . 18 . 260 Average Temperature 86 | . 7 . 99 Received Heat Transfer 529 | . 258 . 271 Siege Activations . | . . . . Martial Activations . | . . . . Shielding Activations . | . . . . Robots Disrupted . | . . . . Combat Hostiles . | . . . . Robots Corrupted . | . . . . Combat Hostiles . | . . . . Parts Fried . | . . . . Impact Corruptions . | . . . . Robots Melted . | . . . . Combat Hostiles . | . . . . Parts Melted 1 | . . . 1 Heat Transferred 580 | . . . 580 Parts Sabotaged . | . . . . Parts Stolen . | . . . . Parts Stripped . | . . . . Power Chain Reactions . | . . . . Alert | -11 -10 -10 -8 ------- Run | Yrd Mat Sub Scr Maximum Alert Level . | . . . . Low Security (%) 100 | 100 100 . . Level 1 . | . . . . Level 2 . | . . . . Level 3 . | . . . . Level 4 . | . . . . Level 5 . | . . . . High Security . | . . . . Max Security . | . . . . Peak Influence 117 | . 117 . . Initial . | . . . . Average 34 | . 38 . . Influence Increases 340 | . 340 . . Destroy 0b10 Robot/C 160 | . 160 . . Destroy Leader 20 | . 20 . . Successful Hack 18 | . 18 . . Disable Machine 15 | . 15 . . Destroy Structure 7 | . 7 . . Partial Spotted 15 | . 15 . . Lose Combat Pursuer 105 | . 105 . . Influence Decreases 340 | . 257 41 42 Entered New Map 83 | . . 41 42 Time Decay 227 | . 227 . . Lost Part 30 | . 30 . . Squads Dispatched . | . . . . Investigation . | . . . . Extermination . | . . . . Reinforcement . | . . . . Assault . | . . . . Garrison . | . . . . Intercept . | . . . . Searches Triggered . | . . . . Construction Impeded . | . . . . Haulers Reinforced . | . . . . Active Scanning Responses . | . . . . Cargo Convoy Interrupts . | . . . . Stealth | -11 -10 -10 -8 --------- Run | Yrd Mat Sub Scr Distress Signals 1 | . 1 . . Communications Jammed . | . . . . Distress Signals . | . . . . Times Spotted 35 | . 13 . 22 Peak Tracking Total 6 | . 3 . 6 Tactical Retreats 4 | . 4 . . Traps | -11 -10 -10 -8 ------- Run | Yrd Mat Sub Scr Traps Triggered 1 | . 1 . . Indirectly . | . . . . Trap Hack Attempts . | . . . . Triggered . | . . . . Disarmed . | . . . . Reprogrammed . | . . . . Reused . | . . . . Traps Extracted . | . . . . Installed . | . . . . Triggered . | . . . . Machines | -11 -10 -10 -8 ---------- Run | Yrd Mat Sub Scr Machines Disabled 2 | . 1 . 1 Max in Single Turn 1 | . 1 . 1 Machines Repaired . | . . . . Machines Dismantled . | . . . . Machines Sabotaged . | . . . . Overloaded Fab Kills . | . . . . Hacking | -11 -10 -10 -8 --------- Run | Yrd Mat Sub Scr Machines Accessed 12 | . 3 . 9 Terminals 2 | . 2 . . Fabricators . | . . . . Repair Stations . | . . . . Recycling Units 1 | . 1 . . Scanalyzers . | . . . . Garrison Access . | . . . . Total Hacks 61 | . 12 . 49 Successful 59 | . 10 . 49 Failed 2 | . 2 . . Catastrophic . | . . . . Database Lockouts . | . . . . Manual 12 | . 12 . . Terminals 10 | . 10 . . Fabricators . | . . . . Repair Stations . | . . . . Recycling Units 2 | . 2 . . Scanalyzers . | . . . . Garrison Access . | . . . . Terminal Hacks 52 | . 3 . 49 Record 43 | . . . 43 Robot Analysis 4 | . . . 4 Open Door 1 | . . . 1 Branch Access Points 1 | . 1 . . Emergency Access Points 1 | . 1 . . Alert Level 1 | . 1 . . Proto ID Catalog 1 | . . . 1 Fabricator Hacks . | . . . . Repair Station Hacks . | . . . . Recycling Unit Hacks . | . . . . Scanalyzer . | . . . . Garrison Access Hacks . | . . . . Unauthorized Hacks 7 | . 7 . . Terminals 5 | . 5 . . Track 1 | . 1 . . Assimilate 1 | . 1 . . Botnet 2 | . 2 . . Operators 1 | . 1 . . Fabricators . | . . . . Repair Stations . | . . . . Recycling Units 2 | . 2 . . Monitor 1 | . 1 . . Reject 1 | . 1 . . Scanalyzers . | . . . . Garrison Access . | . . . . Data Cores Recovered . | . . . . Used . | . . . . Hacking Detections 1 | . 1 . . Full Trace Events . | . . . . Feedback Events . | . . . . Feedback Blocked . | . . . . Robot Schematics Acquired . | . . . . Robots Built . | . . . . Authchips . | . . . . Time . | . . . . Total Robot Build Rating . | . . . . Part Schematics Acquired . | . . . . Parts Built . | . . . . Authchips . | . . . . Time . | . . . . Total Part Build Rating . | . . . . Part Studies Acquired . | . . . . Parts Repaired . | . . . . Time . | . . . . Parts Recycled . | . . . . Recycled Matter . | . . . . Retrieved Matter . | . . . . Retrieved Components . | . . . . Parts Scanalyzed . | . . . . Part Schematics Acquired . | . . . . Parts Damaged . | . . . . Bothacking | -11 -10 -10 -8 ------------ Run | Yrd Mat Sub Scr Used RIF Installer . | . . . . Robots Hacked . | . . . . Non-combat . | . . . . Combat . | . . . . Robot Hacks Applied . | . . . . Relay Couplers Released . | . . . . Fabnet Peak Effective % . | . . . . Robots Rewired . | . . . . Allies Hacked . | . . . . Hacks Repelled . | . . . . Allies | -11 -10 -10 -8 -------- Run | Yrd Mat Sub Scr Total Allies . | . . . . Largest Group . | . . . . Highest-Rated Group . | . . . . Highest-Rated Ally . | . . . . Total Orders . | . . . . Ally Attacks . | . . . . Total Damage . | . . . . Kills . | . . . . Allies Corrupted . | . . . . Allies Melted 5 | . . . 5 Intel | -11 -10 -10 -8 ------- Run | Yrd Mat Sub Scr Active Infowar (turns) . | . . . . Robot Analysis Total 4 | . . . 4 Derelict Logs Recovered . | . . . . Drone Launches . | . . . . Drone Recoveries . | . . . . Exploration | -11 -10 -10 -8 ------------- Run | Yrd Mat Sub Scr Turns Passed 3102 | 67 632 16 2387 Spaces Moved 2443 | 56 398 9 1980 Core 6 | 2 . . 4 Treads 2 | . . . 2 Legs . | . . . . Wheels 2435 | 54 398 9 1974 Hover . | . . . . Flight . | . . . . Fastest Speed 50 | 50 95 115 100 Average Speed 101 | 92 103 115 101 Slowest Speed 300 | 95 115 115 300 Overloaded Moves . | . . . . Propulsion Burnouts . | . . . . Robots Hopped . | . . . . Potential Cave-ins . | . . . . Cave-ins Triggered . | . . . . Exploration Rate (%) 34 | 4 38 2 94 Regions Visited 3 Branch Regions 2 Pre-discovered Areas . | . . . . Known Exits Taken 2 | . 1 1 . Unknown Exits Taken 1 | 1 . . . Scrap Searched 3 | . . . 3 Spaces Dug . | . . . . Terrain Destroyed 7 | . 6 . 1 Melee . | . . . . Projectile 1 | . . . 1 AOE 6 | . 6 . . Terrain Rammed . | . . . . Walls Destroyed . | . . . . Machines Disabled . | . . . . Actions | -11 -10 -10 -8 --------- Run | Yrd Mat Sub Scr Total 2943 | 68 553 14 2308 Wait 352 | . 87 6 259 Move 2440 | 55 397 8 1980 Hop . | . . . . Pick Up 26 | 7 8 . 11 Fast Attach 9 | 5 2 . 2 Attach 9 | 1 3 . 5 Detach 3 | . 1 . 2 Swap 11 | . 7 . 4 Drop 18 | . 6 . 12 Fire 73 | . 42 . 31 Melee . | . . . . Ram . | . . . . Kick . | . . . . Crush . | . . . . Escape Stasis . | . . . . Rewire 2 | . . . 2 Trap . | . . . . Miscellaneous . | . . . . Route ------- -11/Scrapyard -10/Materials (discovered 3 exits: *Mat / Min / *Sub) -10/Subcaves -8/Scraptown (discovered 2 exits: *Fac x2) History --------- Turn | Location | Event 16 | -11/Scrapyard | Discovered new exit (range 15) 68 | -11/Scrapyard | Entered Materials 277 | -10/Materials | Discovered new exit (range 8) 309 | -10/Materials | Build established: Mutant 536 | -10/Materials | Identified exit to Materials 560 | -10/Materials | Identified exit to Mines 694 | -10/Materials | Discovered new exit (range 8) 699 | -10/Materials | Identified exit to Subcaves 700 | -10/Materials | Entered Subcaves 701 | -10/Subcaves | Approached by a straggling Scientist 702 | -10/Subcaves | Shifting Twisted Machinery released Mak. Light Armor Plating 715 | -10/Subcaves | Identified exit to Scraptown 716 | -10/Subcaves | Entered Scraptown 926 | -8/Scraptown | Visited The Evicted 959 | -8/Scraptown | Visited Fellowship of the Rings 984 | -8/Scraptown | Visited Awakened 1021 | -8/Scraptown | Heard Great Nut preacher, LISTEN AND RECITE! 1029 | -8/Scraptown | Visited Symbiants 1395 | -8/Scraptown | Discovered new exit (range 5) 1401 | -8/Scraptown | Identified exit to Factory 1537 | -8/Scraptown | Visited Shadow of the Wyrm 1615 | -8/Scraptown | Visited CR-KLE's Repair Center 1622 | -8/Scraptown | CR-KLE repaired 1 part 1644 | -8/Scraptown | Visited UFD Registry 1644 | -8/Scraptown | Registered with UFD as "Steamnade" 1654 | -8/Scraptown | Visited IN-MT5's Study 2062 | -8/Scraptown | Visited Curators Association 2172 | -8/Scraptown | Visited Junk Repository 2221 | -8/Scraptown | Visited Chapter 10 2260 | -8/Scraptown | Visited Junk Repository 2282 | -8/Scraptown | Visited Scrapoid Research Area 2328 | -8/Scraptown | Visited Research Penetration Think Tank 2360 | -8/Scraptown | Visited Analyses Database 2612 | -8/Scraptown | Visited Sword Containment 2642 | -8/Scraptown | Visited Scrap Suit Storage 2649 | -8/Scraptown | Found Scrap Suit 2684 | -8/Scraptown | Visited Science Guys 2780 | -8/Scraptown | Met Optimus 2780 | -8/Scraptown | Accepted into 0bPrime 2871 | -8/Scraptown | Civil war broke out across Scraptown 2987 | -8/Scraptown | Lost 3 allies 3022 | -8/Scraptown | Core integrity fell below 50% 3060 | -8/Scraptown | Core integrity fell below 20% 3103 | -8/Scraptown | Destroyed by RL-QO5(x) with Makeshift Spear Last Messages --------------- 03064_ Imp. Heat Sink melted. 03064_ HL-F4R(g) destroyed. 03068_ Barrage Gun destroyed. 03072_ I8-JWM(p) heat short circuits Lgt. Deuterium Engine. 03074_ Wheel destroyed. 03086_ Acquired Adv. Treads. 03089_ Acquired Hvy. Plasma Cannon. 03090_ EX-XAS(x) sneak attacks. 03091_ EX-XAS(x) switches sides: "Sorry everyone but I think they're right!" 03095_ Destroyed EM Pulse Gun. 03095_ I8-JWM(p) destroyed. 03096_ RL-QO5(x) suffers critical hit (Impale). 03096_ Slug penetrates PB-B18(j). 03096_ Slug penetrates EX-XAS(x). 03096_ EX-XAS(x) destroyed. 03102_ Enh. Flamer destroyed. 03103_ JD4E3ZIIRMC